bitfinex/quotes_SOLUSD_20240813
["timestamp","ask_amount","ask_price","bid_price","bid_amount"]
[1723583096359,6.5608,146.29,146.26,20.0]
[1723583096560,6.5608,146.29,146.26,21.36726524]
[1723583097657,6.5608,146.29,146.26,20.0]
[1723583097860,6.5608,146.29,146.24,12.59]
[1723583098174,6.5608,146.29,146.25,20.0]
[1723583100703,6.8372,146.26,146.16,4.9640252]
[1723583100870,15.5901,146.27,146.17,8.21448247]
[1723583100871,0.12549,146.24,146.17,8.21448247]
[1723583101185,0.12549,146.24,146.1,24.92868948]
[1723583101186,0.12549,146.22,146.11,18.12669321]
[1723583101376,0.12549,146.2,146.12,8.21608682]
[1723583101685,0.12549,146.2,146.13,20.80608682]
[1723583101686,0.37647,146.2,146.13,20.80608682]
[1723583101984,0.12549,146.19,146.13,12.59]
[1723583102161,0.37647,146.19,146.13,12.59]
[1723583102686,0.37647,146.19,146.11,15.2079]
[1723583102896,0.37647,146.19,146.13,12.59]
[1723583102897,0.12549,146.18,146.13,12.59]
[1723583103083,0.12549,146.18,146.1,94.85221927]
[1723583103084,0.25098,146.18,146.12,12.59]
[1723583103898,6.34419,146.17,146.1,94.85221927]
[1723583104066,0.25098,146.16,146.09,12.59]
[1723583104264,0.25098,146.16,146.07,15.6572]
[1723583104470,0.25098,146.16,146.06,0.8264709]
[1723583104471,0.12549,146.14,146.06,0.8264709]
[1723583104671,0.37647,146.14,146.07,12.59]
[1723583104867,0.37647,146.14,146.06,0.8264709]
[1723583104868,0.25098,146.14,146.09,12.59]
[1723583105665,0.25098,146.14,146.06,0.8264709]
[1723583105864,0.25098,146.14,146.08,12.59]
[1723583107118,0.25098,146.14,146.09,20.0]
[1723583107273,0.25098,146.14,146.09,19.5]
[1723583108188,0.12549,146.13,146.09,19.5]
[1723583108397,0.25098,146.13,146.09,19.5]
[1723583109188,16.3782,146.15,146.12,12.59]
[1723583109393,6.2187,146.17,146.12,12.59]
[1723583111915,0.12549,146.16,146.12,12.59]
[1723583112314,0.37647,146.16,146.1,12.59]
[1723583112484,0.37647,146.16,146.11,20.0]
[1723583112980,45.37647,146.16,146.11,20.0]
[1723583114182,45.37647,146.16,146.06,0.8264709]
[1723583114183,0.25098,146.15,146.06,0.8264709]
[1723583114387,0.25098,146.14,146.08,12.59]
[1723583114585,0.12549,146.13,146.06,0.8264709]
[1723583114798,0.12549,146.13,146.07,12.59]
[1723583115813,0.25098,146.14,146.08,20.0]
[1723583116811,0.25098,146.14,146.07,12.59]
[1723583116988,0.25098,146.14,146.08,20.0]
[1723583117608,0.25098,146.14,146.08,20.38839162]
[1723583117797,0.25098,146.14,146.08,20.0]
[1723583118805,0.12549,146.13,146.08,20.0]
[1723583123515,0.25098,146.13,146.06,13.4164709]
[1723583123706,0.25098,146.12,146.07,20.0]
[1723583125186,0.12549,146.11,146.07,20.0]
[1723583125390,0.12549,146.11,146.06,2.07631587]
[1723583125695,0.12549,146.11,146.06,20.8264709]
[1723583125891,0.12549,146.11,146.06,22.10197588]
[1723583126091,0.12549,146.11,146.06,20.8264709]
[1723583126498,0.25098,146.11,146.06,20.8264709]
[1723583126699,0.25098,146.1,146.06,20.8264709]
[1723583127812,15.7676,146.12,146.07,12.59]
[1723583128206,15.7676,146.12,146.06,20.8264709]
[1723583128406,15.7676,146.12,146.06,13.4164709]
[1723583128603,15.7676,146.12,146.07,20.0]
[1723583130313,15.7676,146.12,146.08,1.3689224]
[1723583130617,15.7676,146.12,146.06,13.4164709]
[1723583130911,15.7676,146.12,146.07,20.0]
[1723583131116,0.37647,146.11,146.07,20.0]
[1723583131317,15.7676,146.12,146.07,20.80031847]
[1723583131511,15.7676,146.12,146.07,20.0]
[1723583131712,15.7676,146.12,146.08,0.80026366]
[1723583131915,15.7676,146.12,146.07,20.0]
[1723583132323,7.1317538,146.15,146.08,12.59]
[1723583132529,7.1317538,146.15,146.1,12.59]
[1723583132819,15.7116,146.16,146.1,12.59]
[1723583133814,0.37647,146.15,146.1,12.59]
[1723583134709,45.37647,146.15,146.1,12.59]
[1723583136507,45.37647,146.15,146.08,12.59]
[1723583136712,0.12549,146.14,146.09,20.0]
[1723583139017,45.37647,146.15,146.09,20.0]
[1723583139426,45.37647,146.15,146.09,21.36734208]
[1723583142330,0.37647,146.15,146.1,12.59]
[1723583142634,0.37647,146.15,146.11,1.36865662]
[1723583143813,0.37647,146.15,146.1,12.59]
[1723583145538,0.37647,146.15,146.09,20.0]
[1723583145716,45.37647,146.15,146.09,12.59]
[1723583145909,45.37647,146.15,146.1,20.0]
[1723583147237,0.37647,146.15,146.1,20.0]
[1723583150219,45.37647,146.15,146.1,20.0]
[1723583152839,15.83709,146.16,146.11,1.36516092]
[1723583153022,15.7116,146.16,146.11,12.59]
[1723583154045,6.2187,146.17,146.13,12.59]
[1723583154334,16.1777,146.2,146.14,1.23013321]
[1723583154738,16.1777,146.2,146.15,13.82166924]
[1723583159418,16.1777,146.2,146.15,12.59]
[1723583159663,16.1777,146.2,146.17,12.59]
[1723583159838,6.2018,146.21,146.18,1.23091092]
[1723583160128,23.3039942,146.24,146.19,1.2407084]
[1723583160449,23.3039942,146.24,146.2,1.24018296]
[1723583160648,16.1777,146.24,146.2,1.24018296]
[1723583160946,28.50507483,146.24,146.19,12.59]
[1723583161336,23.0158,146.24,146.17,12.59]
[1723583161531,0.37647,146.23,146.18,20.0]
[1723583161964,16.1777,146.24,146.18,20.0]
[1723583163732,16.1777,146.24,146.19,12.59]
[1723583167581,16.1777,146.24,146.18,20.0]
[1723583168345,16.1777,146.24,146.19,12.59]
[1723583169421,7.12584813,146.26,146.21,12.59]
[1723583170379,7.12584813,146.26,146.19,12.59]
[1723583170599,0.37647,146.25,146.2,20.0]
[1723583170799,0.50196,146.25,146.2,20.0]
[1723583170981,0.50196,146.25,146.17,12.59]
[1723583171185,0.50196,146.25,146.18,20.0]
[1723583171875,52.33966,146.25,146.18,20.0]
[1723583172076,45.50196,146.25,146.18,20.0]
[1723583172289,0.12549,146.23,146.13,16.2064]
[1723583172492,64.93066,146.23,146.15,12.59]
[1723583172688,7.13105033,146.22,146.15,12.59]
[1723583173274,0.37647,146.21,146.15,12.59]
[1723583176208,13.84652033,146.22,146.15,12.59]
[1723583176503,0.50196,146.21,146.15,12.59]
[1723583178817,7.00752033,146.22,146.17,12.59]
[1723583182284,7.00752033,146.22,146.14,16.0293]
[1723583182285,0.12549,146.21,146.15,12.59]
[1723583182493,0.25098,146.21,146.16,20.0]
[1723583182701,0.25098,146.21,146.15,12.59]
[1723583184485,0.25098,146.2,146.15,12.59]
[1723583184691,0.25098,146.2,146.13,12.59]
[1723583185008,0.25098,146.2,146.14,20.0]
[1723583189402,0.25098,146.19,146.14,20.0]
[1723583189611,0.12549,146.19,146.14,20.0]
[1723583190190,16.50358,146.19,146.13,12.59]
[1723583190388,0.37647,146.18,146.13,12.59]
[1723583191492,0.37647,146.18,146.11,12.59]
[1723583191693,0.37647,146.18,146.12,20.0]
[1723583195525,12.96647,146.18,146.06,5.7904961]
[1723583195703,0.12549,146.16,146.08,12.59]
[1723583196017,0.37647,146.16,146.08,12.59]
[1723583196335,0.12549,146.15,146.08,12.59]
[1723583196496,0.12549,146.13,146.08,12.59]
[1723583196821,0.50196,146.13,146.08,12.59]
[1723583199026,0.50196,146.13,146.06,13.4164709]
[1723583199221,0.50196,146.13,146.07,20.0]
[1723583199695,45.50196,146.13,146.07,20.0]
[1723583201515,45.50196,146.13,146.06,0.8264709]
[1723583201516,6.846,146.07,146.06,0.8264709]
[1723583201708,15.0201,146.09,146.06,0.8264709]
[1723583202017,21.3854,146.09,146.06,0.8264709]
[1723583203337,45.25098,146.08,146.06,0.8264709]
[1723583203623,0.37647,146.07,146.06,0.8264709]
[1723583203798,0.50196,146.07,146.06,0.8264709]
[1723583204997,16.91426,146.07,146.01,20.0]
[1723583205196,16.91426,146.07,146.0,20.0]
[1723583205197,0.25098,146.06,146.0,20.0]
[1723583205506,0.12549,146.05,146.0,20.0]
[1723583205712,0.25098,146.05,146.0,20.0]
[1723583206117,0.25098,146.04,146.0,20.0]
[1723583207301,0.25098,146.03,146.0,20.0]
[1723583207521,0.12549,146.03,146.0,20.0]
[1723583207902,0.25098,146.04,146.0,20.0]
[1723583208201,0.12549,146.03,146.0,20.0]
[1723583209325,45.25098,146.03,146.0,20.0]
[1723583210630,6.3989,146.04,146.0,20.0]
[1723583210840,0.12549,146.06,146.0,32.59]
[1723583211705,0.12549,146.06,146.0,20.0]
[1723583212404,45.50196,146.06,146.0,20.0]
[1723583214130,52.34846,146.06,146.0,20.0]
[1723583214423,45.50196,146.06,146.0,20.0]
[1723583214613,6.8472,146.05,146.0,20.0]
[1723583214799,0.37647,146.04,146.0,20.0]
[1723583215005,0.12549,146.04,146.0,20.0]
[1723583215605,45.37647,146.04,146.0,20.0]
[1723583215904,0.12549,146.03,146.0,20.0]
[1723583216324,0.37647,146.04,146.0,20.0]
[1723583216530,0.25098,146.04,146.0,20.0]
[1723583218927,16.4123,146.07,146.0,20.0]
[1723583219334,16.4123,146.07,146.0,32.59]
[1723583219543,260.3,146.14,146.0,32.59]
[1723583219544,16.1224,146.1,146.01,20.0]
[1723583220443,16.1224,146.1,146.04,12.59]
[1723583220606,6.2733,146.12,146.04,12.59]
[1723583221102,13.1173,146.12,146.04,12.59]
[1723583221308,6.2733,146.12,146.04,12.59]
[1723583221929,6.2733,146.12,146.03,46.9177]
[1723583222108,6.2733,146.12,146.04,20.0]
[1723583222913,0.12549,146.11,146.04,20.0]
[1723583223112,0.37647,146.11,146.04,20.0]
[1723583223508,6.2733,146.12,146.04,20.0]
[1723583225225,0.25098,146.11,146.04,20.0]
[1723583225435,7.22057,146.11,146.04,20.0]
[1723583225819,0.37647,146.11,146.04,20.0]
[1723583226909,45.37647,146.11,146.04,20.0]
[1723583227321,6.8446,146.1,146.04,20.0]
[1723583227626,0.37647,146.09,146.04,20.0]
[1723583227836,0.25098,146.09,146.04,20.0]
[1723583228022,0.25098,146.09,146.04,21.36929383]
[1723583228229,0.25098,146.1,146.05,1.36928221]
[1723583228547,0.25098,146.1,146.03,15.3977]
[1723583228548,0.12549,146.09,146.03,15.3977]
[1723583228753,0.12549,146.09,146.04,20.0]
[1723583229047,0.25098,146.09,146.04,20.0]
[1723583229348,0.12549,146.08,146.04,20.0]
[1723583229563,0.25098,146.09,146.04,20.0]
[1723583231030,0.12549,146.09,146.04,20.0]
[1723583231230,0.37647,146.1,146.04,21.36920157]
[1723583231648,0.37647,146.1,146.04,20.0]
[1723583232037,0.37647,146.1,146.04,21.36925338]
[1723583232230,0.37647,146.1,146.04,20.0]
[1723583232637,0.37647,146.1,146.04,21.36925914]
[1723583232949,6.2733,146.12,146.04,20.0]
[1723583233946,0.12549,146.11,146.04,20.0]
[1723583234161,45.50196,146.11,146.04,20.0]
[1723583235273,52.34626,146.11,146.04,20.0]
[1723583235567,45.50196,146.11,146.04,20.0]
[1723583241863,45.50196,146.11,146.04,32.61]
[1723583242462,45.50196,146.11,146.04,20.0]
[1723583243187,45.50196,146.11,146.04,32.61]
[1723583243188,0.37647,146.11,146.04,32.61]
[1723583244209,0.37647,146.11,146.04,20.0]
[1723583244507,0.12549,146.1,146.04,20.0]
[1723583244668,0.37647,146.1,146.04,20.0]
[1723583245370,0.37647,146.1,146.04,32.61]
[1723583246392,0.37647,146.1,146.04,20.0]
[1723583251206,0.25098,146.1,146.04,20.0]
[1723583251411,45.12549,146.11,146.04,20.0]
[1723583251577,19.4532,146.13,146.04,20.0]
[1723583251578,0.25098,146.12,146.04,32.61]
[1723583251779,0.12549,146.11,146.04,32.61]
[1723583252498,12.61,146.15,146.06,12.61]
[1723583252804,19.4522,146.15,146.07,20.0]
[1723583252985,6.8429,146.14,146.07,20.0]
[1723583253186,19.4533,146.13,146.07,20.0]
[1723583253382,19.4533,146.13,146.05,20.0]
[1723583253705,0.37647,146.12,146.05,20.0]
[1723583253903,45.50196,146.12,146.05,20.0]
[1723583260206,0.12549,146.12,146.06,12.61]
[1723583260408,19.4523,146.15,146.07,20.0]
[1723583261416,0.12549,146.14,146.05,20.0]
[1723583261709,52.34476,146.14,146.05,20.0]
[1723583263014,45.50196,146.14,146.05,20.0]
[1723583263813,52.34476,146.14,146.05,20.0]
[1723583264209,24.94607685,146.13,146.05,20.0]
[1723583264407,52.34596,146.12,146.05,20.0]
[1723583264712,6.8442,146.11,146.03,28.0077]
[1723583265012,45.50196,146.1,146.03,28.0077]
[1723583266090,45.50196,146.1,146.04,20.0]
[1723583268110,45.50196,146.1,146.03,15.3977]
[1723583268111,52.34666,146.1,146.03,15.3977]
[1723583268421,0.12549,146.08,146.03,15.3977]
[1723583268621,0.25098,146.08,146.0,32.61]
[1723583268809,0.12549,146.07,146.0,20.0]
[1723583269005,0.12549,146.06,146.0,20.0]
[1723583269206,0.25098,146.06,146.0,20.0]
[1723583269520,0.12549,146.07,146.0,20.0]
[1723583269726,0.25098,146.07,146.0,20.0]
[1723583270226,0.25098,146.07,146.01,20.0]
[1723583270406,45.25098,146.08,146.01,32.61]
[1723583271027,0.12549,146.07,146.01,32.61]
[1723583271319,0.25098,146.07,146.01,32.61]
[1723583271907,45.12549,146.08,146.01,32.61]
[1723583272325,0.12549,146.07,146.01,32.61]
[1723583273011,12.86098,146.09,146.01,32.61]
[1723583273325,0.25098,146.09,146.01,32.61]
[1723583273518,45.25098,146.09,146.01,32.61]
[1723583275120,0.12549,146.09,146.03,12.61]
[1723583275326,45.12549,146.1,146.03,12.61]
[1723583277731,0.12549,146.11,146.05,12.61]
[1723583278028,0.25098,146.11,146.05,12.61]
[1723583279724,0.12549,146.13,146.06,1.23527116]
[1723583280021,6.1931,146.15,146.07,12.61]
[1723583280022,6.96849,146.14,146.07,12.61]
[1723583281221,0.12549,146.13,146.08,1.36886221]
[1723583281425,6.96879,146.13,146.05,16.1795]
[1723583281722,6.96879,146.13,146.06,32.61]
[1723583283232,7.09468,146.12,146.06,32.61]
[1723583283415,52.22017,146.12,146.06,20.0]
[1723583283610,0.12549,146.11,146.06,20.0]
[1723583283818,6.96959,146.11,146.06,20.0]
[1723583285228,0.12549,146.11,146.06,20.0]
[1723583286413,45.37647,146.12,146.06,20.0]
[1723583287407,52.22047,146.12,146.06,20.0]
[1723583287607,0.12549,146.11,146.06,20.0]
[1723583288214,45.37647,146.12,146.06,20.0]
[1723583289120,45.37647,146.12,146.05,16.1795]
[1723583289507,45.37647,146.12,146.06,20.0]
[1723583291119,0.37647,146.12,146.06,32.61]
[1723583291310,6.1931,146.15,146.06,32.61]
[1723583291311,13.0355,146.15,146.06,32.61]
[1723583291517,45.50196,146.14,146.06,32.61]
[1723583291718,12.33660547,146.13,146.06,32.61]
[1723583291920,45.50196,146.14,146.06,32.61]
[1723583293233,15.9842,146.17,146.08,12.61]
[1723583293234,22.8259,146.17,146.08,12.61]
[1723583293440,22.8259,146.17,146.09,21.36867077]
[1723583293655,22.8259,146.17,146.09,20.0]
[1723583293823,15.9842,146.17,146.1,12.61]
[1723583294022,22.8255,146.17,146.1,12.61]
[1723583294720,0.25098,146.16,146.1,12.61]
[1723583294920,19.17453413,146.18,146.11,1.36865901]
[1723583295125,12.61,146.18,146.1,28.8935]
[1723583295331,12.61,146.18,146.1,16.2835]
[1723583296339,0.12549,146.16,146.1,16.2835]
[1723583298739,52.21797,146.17,146.1,28.8935]
[1723583299420,6.96699,146.17,146.1,28.8935]
[1723583302944,6.8415,146.17,146.1,28.8935]
[1723583303522,0.12549,146.19,146.12,12.61]
[1723583303728,45.50196,146.19,146.12,12.61]
[1723583303941,45.50196,146.19,146.12,13.97140946]
[1723583304140,45.50196,146.19,146.12,12.61]
[1723583304345,6.84,146.2,146.12,12.61]
[1723583304640,6.84,146.2,146.13,20.0]
[1723583306245,6.84,146.2,146.14,15.0754]
[1723583306426,12.33023296,146.23,146.16,12.61]
[1723583306626,12.33023296,146.23,146.17,1.36755957]
[1723583306936,12.33023296,146.23,146.18,1.36796269]
[1723583307851,6.8387,146.23,146.16,12.61]
[1723583308054,0.12549,146.24,146.14,15.0754]
[1723583308055,6.8396,146.21,146.14,27.6854]
[1723583308349,52.21557,146.22,146.15,20.0]
[1723583309648,45.37647,146.22,146.16,1.36739075]
[1723583310523,45.37647,146.22,146.15,20.0]
[1723583313256,6.96349,146.24,146.16,12.61]
[1723583313455,6.838,146.24,146.16,12.61]
[1723583313631,6.838,146.24,146.17,1.36687703]
[1723583313831,6.838,146.24,146.18,1.36678352]
[1723583314747,6.96409,146.23,146.16,12.61]
[1723583314957,15.47579,146.25,146.16,12.61]
[1723583314958,6.96369,146.24,146.16,12.61]
[1723583315157,0.12549,146.23,146.16,12.61]
[1723583315363,0.25098,146.25,146.18,12.61]
[1723583315544,45.12549,146.25,146.18,12.61]
[1723583316853,51.96309,146.25,146.18,12.61]
[1723583318674,45.12549,146.25,146.19,15.5077]
[1723583321632,0.25098,146.26,146.2,13.95622764]
[1723583321846,45.12549,146.27,146.21,1.34613556]
[1723583322055,0.25098,146.27,146.21,1.34613556]
[1723583323076,0.25098,146.27,146.21,1.34840087]
[1723583323243,45.0,146.27,146.21,1.34840087]
[1723583323446,6.96179,146.28,146.2,32.61]
[1723583323648,6.96179,146.28,146.2,12.61]
[1723583326572,6.96179,146.28,146.22,12.61]
[1723583328772,7.08678,146.29,146.23,1.1921403]
[1723583329478,7.08678,146.29,146.24,15.2296]
[1723583330266,7.21059345,146.33,146.24,27.8396]
[1723583330479,7.21059345,146.33,146.25,1.2789854]
[1723583330779,7.21059345,146.33,146.24,27.8396]
[1723583330968,6.8351,146.31,146.24,27.8396]
[1723583331277,6.8354,146.3,146.24,27.8396]
[1723583331774,0.12549,146.29,146.24,15.2296]
[1723583332150,6.96129,146.29,146.24,15.2296]
[1723583333575,0.12549,146.29,146.24,15.2296]
[1723583333874,52.21227,146.29,146.24,15.2296]
[1723583334652,45.37647,146.29,146.24,15.2296]
[1723583335070,0.37647,146.29,146.24,15.2296]
[1723583335373,45.37647,146.29,146.24,15.2296]
[1723583335678,45.37647,146.29,146.17,20.0]
[1723583335679,6.8371,146.26,146.21,16.1201]
[1723583336673,19.57209,146.28,146.21,16.1201]
[1723583336974,0.12549,146.26,146.21,16.1201]
[1723583337954,45.37647,146.27,146.21,16.1201]
[1723583337955,0.37647,146.27,146.21,16.1201]
[1723583338181,6.96209,146.28,146.21,16.1201]
[1723583339182,0.50196,146.27,146.21,16.1201]
[1723583339565,6.96119,146.29,146.21,28.7301]
[1723583339768,45.37647,146.28,146.21,28.7301]
[1723583340490,52.21287,146.28,146.21,28.7301]
[1723583344369,0.12549,146.27,146.21,28.7301]
[1723583344671,6.96229,146.27,146.21,28.7301]
[1723583344865,0.12549,146.26,146.21,28.7301]
[1723583345063,0.12549,146.26,146.21,16.1201]
[1723583346894,45.25098,146.26,146.21,16.1201]
[1723583347074,0.12549,146.26,146.21,16.1201]
[1723583347281,7.08778,146.27,146.21,16.1201]
[1723583347597,45.25098,146.26,146.21,16.1201]
[1723583351680,0.12549,146.25,146.21,16.1201]
[1723583351886,0.25098,146.25,146.21,16.1201]
[1723583353196,6.8387,146.23,146.21,16.1201]
[1723583353490,0.25098,146.25,146.21,16.1201]
[1723583353702,0.25098,146.24,146.21,16.1201]
[1723583353884,0.12549,146.23,146.21,16.1201]
[1723583355395,7.08948,146.23,146.17,16.5809]
[1723583355594,0.37647,146.22,146.17,16.5809]
[1723583357078,6.2054,146.28,146.17,16.5809]
[1723583357079,6.2054,146.28,146.18,12.61]
[1723583357292,6.96259,146.26,146.18,12.61]
[1723583357590,0.25098,146.25,146.18,12.61]
[1723583357793,45.25098,146.25,146.18,12.61]
[1723583358773,0.12549,146.24,146.18,12.61]
[1723583358985,0.25098,146.24,146.18,12.61]
[1723583366295,7.08948,146.23,146.17,16.5809]
[1723583366501,0.25098,146.22,146.17,16.5809]
[1723583366994,7.08998,146.22,146.17,16.5809]
[1723583367206,0.12549,146.21,146.17,16.5809]
[1723583367506,0.25098,146.22,146.17,16.5809]
[1723583367918,45.25098,146.22,146.17,16.5809]
[1723583368090,0.25098,146.22,146.17,16.5809]
[1723583369203,0.12549,146.22,146.17,16.5809]
[1723583369401,6.8374,146.26,146.18,12.61]
[1723583369604,0.12549,146.25,146.18,12.61]
[1723583370813,0.12549,146.24,146.18,12.61]
[1723583371121,0.25098,146.24,146.18,12.61]
[1723583373816,0.12549,146.25,146.19,6.2905]
[1723583374023,6.8374,146.26,146.19,6.2905]
[1723583374599,12.32545395,146.27,146.24,12.61]
[1723583374801,44.65256723,146.35,146.25,16.3015]
[1723583375122,6.8343,146.32,146.25,16.3015]
[1723583375895,12.32406432,146.36,146.26,12.61]
[1723583376121,44.65256723,146.37,146.28,12.61]
[1723583376306,6.8325,146.36,146.28,12.61]
[1723583376612,6.8325,146.36,146.29,1.36693538]
[1723583376613,19.15656432,146.36,146.29,1.36693538]
[1723583377321,19.15294645,146.36,146.29,1.36693538]
[1723583377496,0.12549,146.35,146.28,12.61]
[1723583377819,0.50196,146.35,146.28,12.61]
[1723583378112,57.82240645,146.35,146.29,1.36695293]
[1723583378318,12.32044645,146.34,146.29,1.36695293]
[1723583379812,12.32044645,146.34,146.27,12.61]
[1723583379994,45.50196,146.33,146.25,28.9115]
[1723583380198,0.12549,146.31,146.25,16.3015]
[1723583380408,6.8354,146.3,146.25,16.3015]
[1723583380605,7.21127,146.31,146.25,16.3015]
[1723583380919,45.12549,146.3,146.25,16.3015]
[1723583381307,0.25098,146.31,146.25,16.3015]
[1723583381507,6.8344,146.32,146.25,16.3015]
[1723583389093,0.37647,146.33,146.25,16.3015]
[1723583389424,24.92970481,146.37,146.28,12.61]
[1723583389621,6.8332,146.35,146.28,12.61]
[1723583390306,6.8334,146.34,146.28,12.61]
[1723583390507,6.95949,146.33,146.28,12.61]
[1723583390707,6.834,146.33,146.28,12.61]
[1723583391510,7.20987,146.34,146.28,12.61]
[1723583391830,7.20987,146.34,146.26,1.36643197]
[1723583391831,6.834,146.33,146.26,12.61]
[1723583394406,7.20987,146.34,146.26,12.61]
[1723583397647,0.25098,146.34,146.28,12.61]
[1723583397946,0.12549,146.34,146.28,12.61]
[1723583398154,0.25098,146.34,146.29,20.0]
[1723583398337,45.25098,146.35,146.29,20.0]
[1723583399437,45.25098,146.35,146.28,12.61]
[1723583399946,45.25098,146.35,146.29,20.0]
[1723583400324,6.96009,146.32,146.25,16.3015]
[1723583400547,0.12549,146.32,146.26,20.0]
[1723583400752,45.37647,146.32,146.26,20.0]
[1723583400931,45.50196,146.32,146.26,20.0]
[1723583401350,45.50196,146.32,146.25,16.3015]
[1723583401523,6.8348,146.31,146.25,16.3015]
[1723583402445,0.25098,146.3,146.25,16.3015]
[1723583402650,7.08628,146.3,146.25,16.3015]
[1723583402825,0.12549,146.28,146.24,6.556]
[1723583403029,0.25098,146.28,146.22,16.3192]
[1723583403248,0.12549,146.28,146.22,16.3192]
[1723583403557,0.25098,146.28,146.22,16.3192]
[1723583415546,7.08728,146.28,146.22,16.3192]
[1723583415741,0.25098,146.27,146.22,16.3192]
[1723583418270,0.12549,146.26,146.18,16.3683]
[1723583418472,52.08808,146.26,146.18,16.3683]
[1723583418784,12.61,146.23,146.14,16.3683]
[1723583418942,0.12549,146.22,146.14,16.3683]
[1723583419265,6.8395,146.21,146.14,16.3683]
[1723583419939,0.12549,146.2,146.14,16.3683]
[1723583420154,45.50196,146.2,146.14,16.3683]
[1723583420759,45.50196,146.2,146.13,6.0012]
[1723583420760,52.34186,146.2,146.13,6.0012]
[1723583420966,52.34186,146.2,146.11,27.6815]
[1723583421973,45.50196,146.2,146.11,27.6815]
[1723583422360,42.5767,146.23,146.13,12.61]
[1723583422563,20.0,146.22,146.13,12.61]
[1723583422768,0.50196,146.21,146.13,12.61]
[1723583426968,6.8399,146.2,146.13,12.61]
[1723583427689,64.95146,146.21,146.13,12.61]
[1723583428268,6.84,146.2,146.13,12.61]
[1723583430997,58.11196,146.21,146.13,12.61]
[1723583431591,64.95146,146.21,146.13,12.61]
[1723583431967,45.50196,146.21,146.13,12.61]
[1723583432169,0.50196,146.21,146.13,12.61]
[1723583435004,0.50196,146.21,146.15,12.61]
[1723583436620,7.34146,146.21,146.13,12.61]
[1723583436797,7.34146,146.21,146.14,20.0]
[1723583437522,0.50196,146.21,146.14,20.0]
[1723583437737,6.8402,146.2,146.12,32.61]
[1723583438034,0.25098,146.19,146.12,32.61]
[1723583438239,52.34156,146.21,146.14,12.61]
[1723583438240,45.50196,146.21,146.14,12.61]
[1723583438410,0.50196,146.21,146.14,12.61]
[1723583443826,0.50196,146.21,146.12,20.0]
[1723583444031,0.50196,146.21,146.13,12.61]
[1723583444330,0.50196,146.21,146.14,20.0]
[1723583452931,7.34146,146.21,146.14,20.0]
[1723583455515,15.1512,146.2,146.09,56.4412]
[1723583455836,0.12549,146.17,146.09,12.61]
[1723583456221,45.50196,146.17,146.09,12.61]
[1723583457033,52.34336,146.17,146.09,12.61]
[1723583457234,6.4741,146.18,146.07,16.4471]
[1723583457235,6.4741,146.18,146.11,12.61]
[1723583458919,13.315,146.18,146.11,12.61]
[1723583460542,19.0841,146.18,146.1,20.0]
[1723583460837,6.8424,146.15,146.08,32.61]
[1723583461015,6.8428,146.14,146.08,20.0]
[1723583461217,6.8428,146.14,146.05,12.61]
[1723583461218,6.8437,146.12,146.05,12.61]